lending/lending_fUSD_20240417
["ID","MTS","AMOUNT","RATE_DAILY","PERIOD"]
[322822365,1713365448682,-57317.33075144,0.0002,2]
[322822366,1713365448690,-763.12986837,0.0002,2]
[322822367,1713365448700,-2317.67472766,0.0002,2]
[322822368,1713365448712,-141.21346503,0.0002,2]
[322822369,1713365448721,-375.33831828,0.0002,4]
[322822370,1713365448730,-293.66870231,0.0002,2]
[322822371,1713365448739,-3950.0,0.0002,2]
[322822372,1713365448748,-3000.0,0.0002,3]
[322822373,1713365448757,-3200.0,0.0002,3]
[322822374,1713365448767,-151.39828541,0.0002,2]
[322822375,1713365448777,-3065.67342855,0.0002,2]
[322822376,1713365448786,-155.0,0.0002,4]
[322822377,1713365448796,-289.95357143,0.0002,2]
[322822378,1713365448805,-17177.75422899,0.0002,2]
[322822379,1713365448986,-29339.74103069,0.0002,2]
[322822380,1713365448995,-521.1258225,0.0002,2]
[322822381,1713365449005,-5000.0,0.0002,2]
[322822382,1713365449015,-2972.05719399,0.0002,2]
[322822383,1713365449026,-6653.0,0.0002,2]
[322822384,1713365449035,-5980.0,0.0002,2]
[322822385,1713365449045,-2867.17936331,0.0002,5]
[322822386,1713365449054,-4904.21,0.0002,2]
[322822387,1713365449064,-54321.0,0.0002,2]
[322822388,1713365449075,-500.0,0.0002,2]
[322822389,1713365449084,-1235.66,0.0002,3]
[322822390,1713365449093,-1032.6,0.0002,3]
[322822391,1713365449102,-84412.48588696,0.0002,2]
[322822392,1713365449111,-200.0,0.0002,2]
[322822393,1713365449120,-176.0,0.0002,2]
[322822394,1713365449129,-8985.81911558,0.0002,2]
[322822395,1713365449138,-2150.13,0.0002,2]
[322822396,1713365449148,-304.04,0.0002,2]
[322822397,1713365449157,-151.0,0.0002,2]
[322822398,1713365449166,-151.0,0.0002,2]
[322822399,1713365449175,-151.0,0.0002,2]
[322822400,1713365449184,-399.589798,0.0002,2]
[322822401,1713365449193,-399.589798,0.0002,2]
[322822402,1713365449203,-151.0,0.0002,2]
[322822403,1713365449212,-2100.0,0.0002,2]
[322822404,1713365449221,-7999.99,0.0002,2]
[322822405,1713365449231,-151.0,0.0002,2]
[322822406,1713365449241,-151.619016,0.0002,2]
[322822407,1713365449250,-151.0,0.0002,2]
[322822408,1713365449259,-8000.0,0.0002,2]
[322822409,1713365449269,-151.0,0.0002,2]
[322822410,1713365449280,-151.0,0.0002,2]
[322822411,1713365449292,-151.0,0.0002,2]
[322822412,1713365449301,-151.0,0.0002,2]
[322822413,1713365449311,-151.0,0.0002,2]
[322822414,1713365449320,-151.0,0.0002,2]
[322822415,1713365449330,-151.0,0.0002,2]
[322822416,1713365449339,-152.194901,0.0002,2]
[322822417,1713365449349,-752.58,0.0002,2]
[322822418,1713365449359,-151.0,0.0002,2]
[322822419,1713365449368,-151.0,0.0002,2]
[322822420,1713365449378,-151.0,0.0002,2]
[322822421,1713365449387,-151.0,0.0002,2]
[322822422,1713365449398,-151.0,0.0002,2]
[322822423,1713365449407,-151.0,0.0002,2]
[322822424,1713365449416,-152.761423,0.0002,2]
[322822425,1713365449427,-151.0,0.0002,2]
[322822426,1713365449436,-151.0,0.0002,2]
[322822427,1713365449445,-490.0,0.0002,2]
[322822428,1713365449454,-490.0,0.0002,2]
[322822429,1713365449463,-151.0,0.0002,2]
[322822430,1713365449473,-195.334872,0.0002,2]
[322822431,1713365449483,-195.334872,0.0002,2]
[322822432,1713365449492,-265.301218,0.0002,2]
[322822433,1713365449501,-151.0,0.0002,2]
[322822434,1713365449510,-151.0,0.0002,2]
[322822435,1713365449525,-222.513314,0.0002,2]
[322822436,1713365449534,-151.0,0.0002,2]
[322822437,1713365449543,-318.57408,0.0002,2]
[322822438,1713365449553,-318.57408,0.0002,2]
[322822439,1713365449563,-152.219475,0.0002,2]
[322822440,1713365449572,-416.438886,0.0002,2]
[322822441,1713365449581,-416.438886,0.0002,2]
[322822442,1713365449590,-151.0,0.0002,2]
[322822443,1713365449599,-151.0,0.0002,2]
[322822444,1713365449609,-151.0,0.0002,2]
[322822445,1713365449618,-151.0,0.0002,2]
[322822446,1713365449627,-151.0,0.0002,2]
[322822447,1713365449636,-151.0,0.0002,2]
[322822448,1713365449645,-151.469559,0.0002,2]
[322822449,1713365449655,-1250.010841,0.0002,2]
[322822450,1713365449664,-1250.010841,0.0002,2]
[322822451,1713365449673,-151.0,0.0002,2]
[322822452,1713365449682,-151.662616,0.0002,2]
[322822453,1713365449691,-151.662616,0.0002,2]
[322822454,1713365449700,-152.107251,0.0002,2]
[322822455,1713365449709,-151.0,0.0002,2]
[322822456,1713365449718,-151.0,0.0002,2]
[322822457,1713365449728,-151.0,0.0002,2]
[322822458,1713365449737,-151.0,0.0002,2]
[322822459,1713365449746,-151.0,0.0002,2]
[322822460,1713365449755,-151.0,0.0002,2]
[322822461,1713365449765,-151.0,0.0002,2]
[322822462,1713365449778,-151.0,0.0002,2]
[322822463,1713365449787,-151.0,0.0002,2]
[322822464,1713365449797,-198.01341,0.0002,2]
[322822465,1713365449805,-198.01341,0.0002,2]
[322822466,1713365449814,-151.0,0.0002,2]
[322822467,1713365449823,-2731.870387,0.0002,2]
[322822468,1713365449833,-151.0,0.0002,2]
[322822469,1713365449844,-2731.870387,0.0002,2]
[322822470,1713365449853,-151.0,0.0002,2]
[322822471,1713365449863,-151.0,0.0002,2]
[322822472,1713365449872,-196.046958,0.0002,2]
[322822473,1713365449882,-196.046958,0.0002,2]
[322822474,1713365449891,-151.0,0.0002,2]
[322822475,1713365449901,-151.0,0.0002,2]
[322822476,1713365449910,-482.686305,0.0002,2]
[322822477,1713365449919,-482.686305,0.0002,2]
[322822478,1713365449930,-151.0,0.0002,2]
[322822479,1713365449940,-151.0,0.0002,2]
[322822480,1713365449951,-151.0,0.0002,2]
[322822481,1713365449960,-264.97795,0.0002,2]
[322822482,1713365449969,-264.97795,0.0002,2]
[322822483,1713365449979,-4669.12,0.0002,2]
[322822484,1713365449988,-151.0,0.0002,2]
[322822485,1713365449997,-1966.089663,0.0002,2]
[322822486,1713365450007,-1966.089663,0.0002,2]
[322822487,1713365450017,-181.605677,0.0002,2]
[322822488,1713365450033,-181.605677,0.0002,2]
[322822489,1713365450042,-171.35312,0.0002,2]
[322822490,1713365450051,-158.566633,0.0002,2]
[322822491,1713365450060,-158.566633,0.0002,2]
[322822492,1713365450069,-174.93688618,0.0002,2]
[322822493,1713365450079,-273.895216,0.0002,2]
[322822494,1713365450088,-273.895216,0.0002,2]
[322822495,1713365450097,-151.0,0.0002,2]
[322822496,1713365450107,-164.04646,0.0002,2]
[322822497,1713365450115,-473.202725,0.0002,2]
[322822498,1713365450125,-473.202725,0.0002,2]
[322822499,1713365450134,-365.162588,0.0002,2]
[322822500,1713365450144,-151.0,0.0002,2]
[322822501,1713365450154,-334.062123,0.0002,2]
[322822502,1713365450163,-365.162588,0.0002,2]
[322822503,1713365450173,-334.062123,0.0002,2]
[322822504,1713365450183,-171.006361,0.0002,2]
[322822505,1713365450193,-183.00458,0.0002,2]
[322822506,1713365450203,-171.006361,0.0002,2]
[322822507,1713365450213,-183.00458,0.0002,2]
[322822508,1713365450224,-506.8979816,0.0002,2]
[322822509,1713365450234,-506.8979816,0.0002,2]
[322822510,1713365450244,-506.8979816,0.0002,2]
[322822511,1713365450254,-506.8979816,0.0002,2]
[322822512,1713365450265,-506.8979816,0.0002,2]
[322822513,1713365450278,-506.8979816,0.0002,2]
[322822514,1713365450288,-506.8979816,0.0002,2]
[322822515,1713365450298,-506.8979816,0.0002,2]
[322822516,1713365450308,-506.8979816,0.0002,2]
[322822517,1713365450317,-506.8979816,0.0002,2]
[322822518,1713365450328,-506.8979816,0.0002,2]
[322822519,1713365450342,-506.8979816,0.0002,2]
[322822520,1713365450351,-506.8979816,0.0002,2]
[322822521,1713365450539,-506.8979816,0.0002,2]
[322822522,1713365450549,-506.8979816,0.0002,2]
[322822523,1713365450559,-506.8979816,0.0002,2]
[322822524,1713365450568,-506.8979816,0.0002,2]
[322822525,1713365450579,-506.8979816,0.0002,2]
[322822526,1713365450588,-506.8979816,0.0002,2]
[322822527,1713365450598,-506.8979816,0.0002,2]
[322822528,1713365450607,-506.8979816,0.0002,2]
[322822529,1713365450618,-506.8979816,0.0002,2]
[322822530,1713365450627,-506.8979816,0.0002,2]
[322822531,1713365450638,-357.863911,0.0002,2]
[322822532,1713365450648,-506.8979816,0.0002,2]
[322822533,1713365450657,-506.8979816,0.0002,2]
[322822534,1713365450666,-506.8979816,0.0002,2]
[322822535,1713365450675,-506.8979816,0.0002,2]
[322822536,1713365450685,-506.8979816,0.0002,2]
[322822537,1713365450695,-506.8979816,0.0002,2]
[322822538,1713365450704,-506.8979816,0.0002,2]
[322822539,1713365450714,-506.8979816,0.0002,2]
[322822540,1713365450723,-506.8979816,0.0002,2]
[322822541,1713365450733,-506.8979816,0.0002,2]
[322822542,1713365450743,-506.8979816,0.0002,2]
[322822543,1713365450752,-506.8979816,0.0002,2]
[322822544,1713365450762,-506.8979816,0.0002,2]
[322822545,1713365450774,-506.8979816,0.0002,2]
[322822546,1713365450784,-506.8979816,0.0002,2]
[322822547,1713365450793,-506.8979816,0.0002,2]
[322822548,1713365450802,-506.8979816,0.0002,2]
[322822549,1713365450812,-506.8979816,0.0002,2]
[322822550,1713365450821,-357.863911,0.0002,2]
[322822551,1713365450831,-506.8979816,0.0002,2]
[322822552,1713365450842,-506.8979816,0.0002,2]
[322822553,1713365450851,-506.8979816,0.0002,2]
[322822554,1713365450861,-506.8979816,0.0002,2]
[322822555,1713365450871,-506.8979816,0.0002,2]
[322822556,1713365450881,-506.8979816,0.0002,2]
[322822557,1713365450891,-506.8979816,0.0002,2]
[322822558,1713365450901,-506.8979816,0.0002,2]
[322822559,1713365450912,-188.5065,0.0002,2]
[322822560,1713365450922,-506.8979816,0.0002,2]
[322822561,1713365450932,-188.5065,0.0002,2]
[322822562,1713365450942,-151.0,0.0002,2]
[322822563,1713365450951,-151.0,0.0002,2]
[322822564,1713365450961,-151.0,0.0002,2]
[322822565,1713365450971,-215.73867169,0.00020003,2]
[322822566,1713365450981,-8000.0,0.0002001,2]
[322822567,1713365450991,-189.0,0.0002002,2]
[322822568,1713365451001,-215.73867169,0.00020027,2]
[322822569,1713365451010,-215.73867169,0.0002005,2]
[322822570,1713365451019,-412.51,0.00020055,2]
[322822571,1713365451031,-1816.96,0.00020055,2]
[322822572,1713365451040,-215.73867169,0.00020074,2]
[322822573,1713365451051,-215.73867169,0.00020097,2]
[322822574,1713365451061,-500.26389863,0.00020099,2]
[322822575,1713365451071,-215.73867169,0.00020121,2]
[322822576,1713365451081,-3982.1787264,0.00020136,2]
[322822577,1713365451091,-215.73867169,0.00020145,2]
[322822578,1713365451100,-150.0,0.00020156,2]
[322822579,1713365451110,-215.73867169,0.00020168,2]
[322822580,1713365451119,-215.73867169,0.00020192,2]
[322822581,1713365451129,-215.73867169,0.00020215,2]
[322822582,1713365451138,-215.73867169,0.00020239,2]
[322822583,1713365451147,-400.0,0.00020255,2]
[322822584,1713365451158,-215.73867169,0.00020263,2]
[322822585,1713365451167,-215.73867169,0.00020286,2]
[322822586,1713365451177,-2400.0,0.000203,7]
[322822587,1713365451187,-215.73867169,0.0002031,2]
[322822588,1713365451196,-3982.1787264,0.00020327,2]
[322822589,1713365451205,-215.73867169,0.00020333,2]
[322822590,1713365451215,-3923.40808727,0.00020352,3]
[322822591,1713365451224,-215.73867169,0.00020357,2]
[322822592,1713365451233,-602.34678086,0.00020379,2]
[322822593,1713365451244,-215.73867169,0.00020381,2]
[322822594,1713365451254,-4189.12632532,0.00020389,2]
[322822595,1713365451264,-37622.11570607,0.000204,2]
[322822596,1713365451282,-915.915,0.000204,2]
[322822597,1713365451293,-826.32004515,0.000204,2]
[322822598,1713365451309,-610.0,0.000204,2]
[322822599,1713365451320,-119283.37293385,0.000204,2]
[322822600,1713365451330,-235.1983545,0.000204,2]
[322822601,1713365451342,-151.0,0.000204,2]
[322822602,1713365451352,-151.0,0.000204,2]
[322822603,1713365451362,-151.0,0.000204,2]
[322822604,1713365451371,-174.4903709,0.000204,2]
[322822605,1713365451381,-151.0,0.000204,2]
[322822606,1713365451392,-151.0,0.000204,2]
[322822607,1713365451402,-151.0,0.000204,2]
[322822608,1713365451411,-151.0,0.000204,2]
[322822609,1713365451422,-152.887279,0.000204,2]
[322822610,1713365451432,-255.656499,0.000204,2]
[322822611,1713365451441,-490.0,0.000204,2]
[322822612,1713365451451,-490.0,0.000204,2]
[322822613,1713365451460,-151.0,0.000204,2]
[322822614,1713365451471,-195.334872,0.000204,2]
[322822615,1713365451480,-62.09375965,0.000204,2]
[322822616,1713365451493,-133.24111235,0.000204,2]
[322822617,1713365451503,-151.0,0.000204,2]
[322822618,1713365451512,-18.8975163,0.000204,2]
[322822619,1713365451527,-132.1024837,0.000204,2]
[322822620,1713365451537,-151.0,0.000204,2]
[322822621,1713365451546,-318.57408,0.000204,2]
[322822622,1713365451556,-318.57408,0.000204,2]
[322822623,1713365451566,-151.0,0.000204,2]
[322822624,1713365451576,-151.0,0.000204,2]
[322822625,1713365451585,-151.0,0.000204,2]
[322822626,1713365451595,-151.0,0.000204,2]
[322822627,1713365451604,-151.0,0.000204,2]
[322822628,1713365451614,-151.0,0.000204,2]
[322822629,1713365451623,-151.0,0.000204,2]
[322822630,1713365451633,-198.01341,0.000204,2]
[322822631,1713365451643,-198.01341,0.000204,2]
[322822632,1713365451652,-671.3700859,0.000204,2]
[322822633,1713365646039,16605.4121,0.00015406,2]
[322822634,1713365652482,223.2,0.00025048,120]
[322822635,1713365670634,538.85837783,0.00015501,2]
[322822637,1713365687093,267.23064809,0.00015501,2]
[322822638,1713365687762,155.0,0.00015501,2]
[322822639,1713365691561,378.72513847,0.00015501,2]
[322822640,1713365697009,645.4650384,0.00015501,2]
[322822641,1713365697250,1993.29101255,0.00015501,2]
[322822642,1713365697908,3756.48115014,0.00015501,2]
[322822643,1713365702027,202.17437643,0.00015501,2]
[322822644,1713365702125,262.08510963,0.00015501,2]
[322822645,1713365703668,709.37578356,0.00015501,2]
[322822646,1713365705150,4725.50924888,0.00015501,2]
[322822647,1713365706422,376.54513586,0.00015501,2]
[322822648,1713365706841,1127.71303963,0.00015501,2]
[322822649,1713365708638,3773.69257213,0.00015501,2]
[322822650,1713365710398,2177.97388963,0.00015501,2]
[322822651,1713365712548,313.57148398,0.00015501,2]
[322822652,1713365724109,1243.52223368,0.00015501,2]
[322822654,1713365745143,6226.99873406,0.00015501,2]
[322822659,1713365895431,16605.4121,0.00015407,2]
[322822660,1713365907989,324.60378654,0.00015501,2]
[322822661,1713365921058,1868.06030025,0.00015501,2]
[322822662,1713365929693,1243.52223368,0.00015501,2]
[322822663,1713365942949,1127.71303963,0.00015501,2]
[322822664,1713365950601,4319.40747668,0.00015501,2]
[322822665,1713365960190,262.08510963,0.00015501,2]
[322822667,1713365961203,4725.50924888,0.00015501,2]
[322822668,1713365961819,155.0,0.00015501,2]
[322822669,1713365978576,313.57148398,0.00015501,2]
[322822670,1713366010415,551.95,0.00014311,2]
[322822671,1713366049489,155.0,0.00015501,2]
[322822672,1713366094202,4725.50924888,0.00015501,2]
[322822673,1713366111262,262.08510963,0.00015501,2]
[322822674,1713366115710,313.57148398,0.00015501,2]
[322822675,1713366125399,1243.52223368,0.00015501,2]
[322822678,1713366150305,16605.4121,0.00015402,2]
[322822679,1713366231347,4725.50924888,0.00015501,2]
[322822681,1713366258612,313.57148398,0.00015501,2]
[322822682,1713366352255,424.06271263,0.00014936,2]
[322822683,1713366352864,156.19509503,0.00014936,2]
[322822684,1713366368505,-312.4422366,0.0003,20]
[322822685,1713366369023,1293.05345863,0.00015501,2]
[322822686,1713366378322,4725.50924888,0.00015501,2]
[322822687,1713366383658,313.57148398,0.00015501,2]
[322822688,1713366393093,4762.9593,0.00015402,2]
[322822689,1713366401973,1388.16314387,0.00015501,2]
[322822690,1713366422154,780.72857276,0.00015501,2]
[322822691,1713366432509,1790.66,0.00015419,2]
[322822692,1713366452712,152.07,0.00015446,2]
[322822693,1713366474631,417.12,0.000154,2]
[322822695,1713366516647,313.57148398,0.00015501,2]
[322822696,1713366529338,4725.50924888,0.00015501,2]
[322822697,1713366557119,566.02,0.00013528,2]
[322822698,1713366589159,313.57148398,0.00015501,2]
[322822699,1713366605757,160.39,0.00014976,2]
[322822704,1713366615548,3887.69,0.0001495,2]
[322822705,1713366620873,200.0,0.00015183,2]
[322822723,1713366631483,-316.0,0.00015502,2]
[322822726,1713366631593,-1861.97388963,0.00015502,2]
[322822727,1713366631603,-207.67188344,0.00015506,2]
[322822728,1713366631613,-150.0,0.0001551,2]
[322822729,1713366631622,-9135.91130349,0.00015511,2]
[322822730,1713366631632,-495.32,0.00015562,2]
[322822731,1713366631642,-172.5,0.00015573,2]
[322822732,1713366631652,-495.32,0.00015605,2]
[322822733,1713366631661,-495.32,0.00015647,2]
[322822734,1713366631671,-1000.0,0.00015655,2]
[322822735,1713366631683,-250.0,0.00015661,2]
[322822736,1713366631693,-5151.43822344,0.00015661,2]
[322822737,1713366631708,-2718.25177656,0.00015661,2]
[322822738,1713366631718,-150.99,0.00015661,2]
[322822739,1713366631728,-499.99,0.00015661,2]
[322822740,1713366631738,-999.99,0.00015661,2]
[322822741,1713366631747,-6310.36861944,0.0001567,2]
[322822742,1713366631760,-317.06523479,0.0001567,2]
[322822743,1713366631801,-2472.36614577,0.0001567,2]
[322822744,1713366631811,-16017.37143072,0.00015686,2]
[322822745,1713366631821,-386.63,0.00015687,2]
[322822746,1713366631831,-9999.99,0.00015687,2]
[322822747,1713366631843,-299.99,0.00015687,2]
[322822748,1713366631854,-495.65242451,0.00015687,2]
[322822749,1713366631872,-2395.87757549,0.00015687,2]
[322822750,1713366631882,-1374.03455117,0.00015687,2]
[322822752,1713366631892,-8625.95544883,0.00015687,2]
[322822754,1713366631902,-919.33,0.00015687,2]
[322822756,1713366631911,-12.01455116,0.00015687,2]
[322822793,1713366637468,-1053.83544884,0.00015687,2]
[322822796,1713366637476,-495.32,0.0001569,2]
[322822799,1713366637485,-6283.14,0.00015693,2]
[322822802,1713366637494,-495.32,0.00015733,2]
[322822805,1713366637503,-781.77758254,0.00015739,2]
[322822806,1713366637511,-3399.6178313,0.00015751,2]
[322822809,1713366637570,-3385.96953395,0.00015751,2]
[322822810,1713366637581,-46.72263475,0.00015751,2]
[322822811,1713366637591,-495.32,0.00015776,2]
[322822812,1713366637600,-313.57148398,0.0001578,2]
[322822813,1713366637610,-2222.5513906,0.0001578,2]
[322822814,1713366637641,-738.294,0.0001578,2]
[322822815,1713366637655,-15623.20136187,0.0001578,2]
[322822816,1713366637717,-5120.24499712,0.0001578,2]
[322822817,1713366637737,-60668.42052025,0.0001578,2]
[322822986,1713366639547,-1104.37999887,0.0001578,2]
[322823125,1713366640937,-394.18780526,0.0001578,2]
[322823127,1713366640953,-2980.27730005,0.0001578,2]
[322823129,1713366640970,-5448.87227339,0.0001578,2]
[322823132,1713366640985,-778.10414399,0.0001578,2]
[322823134,1713366640998,-1784.03961334,0.0001578,2]
[322823136,1713366641017,-849.99221988,0.0001578,2]
[322823138,1713366641029,-2398.88908423,0.0001578,2]
[322823140,1713366641042,-2846.65934622,0.0001578,2]
[322823434,1713366643486,-1709.49500912,0.0001578,2]
[322823438,1713366643501,-1083.20596046,0.0001578,2]
[322823440,1713366643513,-900.0,0.0001578,2]
[322823442,1713366643525,-552.55362474,0.0001578,2]
[322823446,1713366643547,-896.59095321,0.0001578,2]
[322823448,1713366643558,-1232.1652968,0.0001578,2]
[322823453,1713366643596,-1078.79243425,0.0001578,2]
[322823455,1713366643609,-1599.74003416,0.0001578,2]
[322823457,1713366643626,-327.46491863,0.0001578,2]
[322823463,1713366643673,-650.65,0.0001578,2]
[322823541,1713366645576,-848.25536983,0.0001578,2]
[322823542,1713366645632,-2343.36758848,0.0001578,2]
[322823543,1713366645855,-665.75935439,0.0001578,2]
[322823544,1713366648596,-428955.72367941,0.0001578,2]
[322823545,1713366648606,-23900.0,0.00015781,2]
[322823546,1713366648616,-566.02,0.00015792,2]
[322823547,1713366648626,-495.32,0.00015818,2]
[322823548,1713366648636,-495.32,0.00015861,2]
[322823549,1713366648645,-495.32,0.00015904,2]
[322823550,1713366648655,-495.32,0.00015946,2]
[322823551,1713366648665,-495.32,0.00015989,2]
[322823552,1713366648675,-495.32,0.00016032,2]
[322823553,1713366648687,-495.32,0.00016074,2]
[322823554,1713366648696,-1662.75,0.00016116,2]
[322823555,1713366648706,-495.32,0.00016117,2]
[322823556,1713366648716,-495.32,0.0001616,2]
[322823557,1713366648728,-495.32,0.00016202,2]
[322823558,1713366648738,-495.32,0.00016245,2]
[322823559,1713366648747,-495.32,0.00016288,2]
[322823560,1713366648757,-495.32,0.0001633,2]
[322823561,1713366648768,-495.32,0.00016373,2]
[322823562,1713366648779,-1223.11342604,0.000165,2]
[322823563,1713366648788,-611.3737857,0.00016555,2]
[322823564,1713366648798,-845.20757589,0.00016566,2]
[322823565,1713366648808,-1412.15811484,0.00016567,2]
[322823566,1713366648818,-938.08685613,0.00016568,2]
[322823567,1713366648827,-875.91071407,0.00016568,2]
[322823568,1713366648837,-16539.01,0.00016569,2]
[322823569,1713366648846,-150.99,0.00016571,2]
[322823570,1713366648857,-1314.64,0.00016571,2]
[322823571,1713366648867,-249.10410252,0.00016596,2]
[322823572,1713366648877,-365.80477657,0.00016597,2]
[322823573,1713366648886,-150.99,0.000166,2]
[322823574,1713366648896,-223.2,0.00016698,2]
[322823575,1713366648906,-999.92,0.00016712,2]
[322823576,1713366648915,-177.49408056,0.00016823,2]
[322823577,1713366648927,-404.76582809,0.00016875,2]
[322823578,1713366648938,-941.19979602,0.00016875,2]
[322823579,1713366648948,-75617.307,0.00016878,2]
[322823580,1713366648958,-1298.43503542,0.0001706,2]
[322823581,1713366648969,-210.0,0.00017061,2]
[322823582,1713366648980,-2353.62009514,0.00017305,2]
[322823583,1713366648990,-207.65451655,0.00017346,2]
[322823584,1713366648999,-1530.74414327,0.0001735,2]
[322823585,1713366649009,-3676.79929465,0.0001735,2]
[322823586,1713366649019,-277.09289079,0.0001735,2]
[322823587,1713366649029,-161.51526491,0.0001735,2]
[322823588,1713366649039,-4579.75619284,0.00017351,2]
[322823589,1713366649050,-326.37999617,0.00017351,2]
[322823590,1713366649059,-219.26759137,0.00017351,2]
[322823591,1713366649069,-872.30467711,0.00017351,2]
[322823592,1713366649078,-788.87983033,0.00017351,2]
[322823593,1713366649088,-573.14137953,0.00017351,2]
[322823594,1713366649098,-232.69939709,0.00017351,2]
[322823595,1713366649108,-195.00376366,0.00017351,2]
[322823596,1713366649118,-2589.70273245,0.00017351,2]
[322823597,1713366649128,-5542.02176145,0.00017353,2]
[322823598,1713366649138,-35228.79219969,0.00017353,2]
[322823599,1713366649148,-208.69733515,0.00017356,2]
[322823600,1713366649159,-196.16678348,0.00017357,2]
[322823601,1713366649169,-157.12680365,0.00017357,2]
[322823602,1713366649179,-156.44102129,0.00017357,2]
[322823603,1713366649189,-305.60617377,0.00017358,2]
[322823604,1713366649199,-539.99810698,0.00017358,2]
[322823605,1713366649209,-167.0,0.00017387,2]
[322823606,1713366649219,-366.3259781,0.00017395,2]
[322823607,1713366649229,-1473.81938821,0.00017395,2]
[322823608,1713366649240,-944.22661995,0.00017395,2]
[322823609,1713366649249,-7497.97508809,0.00017476,2]
[322823610,1713366649259,-177.49408055,0.00017499,2]
[322823611,1713366649269,-1000.0,0.00017612,2]
[322823612,1713366649278,-78645.61038558,0.0001788,2]
[322823613,1713366649288,-78645.61038556,0.0001788,2]
[322823614,1713366649298,-78645.61038556,0.0001788,2]
[322823615,1713366649307,-15822.66928903,0.0001788,2]
[322823616,1713366649317,-15822.669289,0.0001788,2]
[322823617,1713366649327,-15822.669289,0.0001788,2]
[322823618,1713366649338,-150.14,0.00017935,2]
[322823619,1713366649348,-78645.61038556,0.00017945,2]
[322823620,1713366649357,-15822.669289,0.00017945,2]
[322823621,1713366649367,-7497.97508806,0.00017965,2]
[322823622,1713366649377,-580.0,0.00017986,2]
[322823623,1713366649386,-5260.92583365,0.00017999,2]
[322823624,1713366649396,-200.32,0.00018049,2]
[322823625,1713366649407,-566.02,0.00018056,2]
[322823626,1713366649416,-633.0,0.00018083,2]
[322823627,1713366649425,-541.0,0.00018083,2]
[322823628,1713366649434,-167.0,0.00018105,2]
[322823629,1713366649445,-385.952,0.00018156,2]
[322823630,1713366649454,-541.0,0.00018156,2]
[322823631,1713366649464,-177.49408055,0.00018175,2]
[322823632,1713366649473,-328.4932,0.00018199,2]
[322823633,1713366649485,-995.5446816,0.00018254,2]
[322823634,1713366649495,-192.9581475,0.00018254,2]
[322823635,1713366649504,-609.0,0.00018275,2]
[322823636,1713366649512,-436.0,0.00018275,2]
[322823637,1713366649522,-257.0,0.00018275,2]
[322823638,1713366649531,-1949.0,0.00018275,2]
[322823639,1713366649540,-807.0,0.00018275,2]
[322823640,1713366649549,-664.957,0.00018275,2]
[322823641,1713366649558,-2072.659,0.00018275,2]
[322823642,1713366649567,-399.0,0.00018275,2]
[322823643,1713366649577,-1264.332,0.00018275,2]
[322823644,1713366649587,-1412.486,0.00018275,2]
[322823645,1713366649596,-214.0,0.00018275,2]
[322823646,1713366649606,-443.0,0.00018275,2]
[322823647,1713366649616,-1140.0,0.00018275,2]
[322823648,1713366649625,-355.0,0.00018275,2]
[322823649,1713366649635,-1900.555,0.00018275,2]
[322823650,1713366649646,-611.3737857,0.0001829,2]
[322823651,1713366649655,-150.14,0.0001829,2]